bitfinex-derivatives/quotes_BTCF0:USTF0_20260113
["timestamp","ask_amount","ask_price","bid_price","bid_amount"]
[1768285130816,0.09127803,92029.0,92019.0,0.09792]
[1768285131120,0.099941,92023.0,92015.0,0.09792]
[1768285131317,0.099941,92023.0,92010.0,0.13122516]
[1768285131520,0.099941,92023.0,92014.0,0.09792]
[1768285132122,0.099941,92029.0,92014.0,0.09792]
[1768285134721,0.099941,92036.0,92019.0,0.13122516]
[1768285135616,0.099941,92036.0,92020.0,0.01088]
[1768285136124,0.19121903,92036.0,92020.0,0.01088]
[1768285136419,0.099941,92035.0,92020.0,0.01088]
[1768285136820,0.099941,92035.0,92020.0,0.10536354]
[1768285137022,0.099941,92035.0,92023.0,0.010879]
[1768285139019,0.099941,92035.0,92020.0,0.09448354]
[1768285139322,0.099941,92035.0,92019.0,0.14210516]
[1768285140122,0.099941,92042.0,92026.0,0.010879]
[1768285140312,0.099941,92042.0,92030.0,0.13122516]
[1768285143123,0.099941,92037.0,92024.0,0.09792]
[1768285143424,0.099941,92036.0,92024.0,0.09792]
[1768285144712,0.099941,92036.0,92017.0,0.09468396]
[1768285144713,0.19440655,92031.0,92013.0,0.010881]
[1768285144927,0.14210316,92034.0,92010.0,0.13122516]
[1768285144928,0.09938442,92027.0,92015.0,0.01088]
[1768285145125,0.09938442,92027.0,92016.0,0.09792]
[1768285151734,0.09938442,92026.0,92016.0,0.09792]
[1768285155422,0.09602703,92025.0,92010.0,0.949161]
[1768285155627,0.19413025,92020.0,92011.0,0.09792]
[1768285155828,0.09810322,92019.0,92011.0,0.09792]
[1768285158439,0.09810322,92025.0,92011.0,0.19197716]
[1768285158626,0.09810322,92025.0,92011.0,0.09792]
[1768285158826,0.09810322,92025.0,92011.0,0.19268365]
[1768285159028,0.09810322,92025.0,92012.0,0.09476365]
[1768285159228,0.09810322,92033.0,92017.0,0.01088]
[1768285159937,0.09810322,92033.0,92015.0,0.09476365]
[1768285160238,0.09810322,92031.0,92013.0,0.01088]
[1768285160840,0.19413025,92031.0,92013.0,0.01088]
[1768285161142,0.09810322,92030.0,92013.0,0.01088]
[1768285163744,0.19413025,92030.0,92013.0,0.01088]
[1768285163949,0.09810322,92029.0,92013.0,0.01088]
[1768285164239,0.09810322,92028.0,92011.0,0.09792]
[1768285164446,0.09602703,92027.0,92011.0,0.09792]
[1768285164741,0.09602703,92025.0,92011.0,0.09792]
[1768285165044,0.09602703,92023.0,92007.0,0.09792]
[1768285165244,0.010879,92028.0,92007.0,0.09792]
[1768285165245,0.09602703,92021.0,92007.0,0.09792]
[1768285165452,0.09810322,92020.0,92008.0,0.010881]
[1768285165745,0.09602703,92019.0,92008.0,0.010881]
[1768285165941,0.09602703,92019.0,92007.0,0.09792]
[1768285165942,0.09810322,92018.0,92007.0,0.09792]
[1768285166249,0.09810322,92017.0,92007.0,0.09792]
[1768285166639,0.09810322,92016.0,92007.0,0.09792]
[1768285166843,0.09810322,92014.0,92006.0,0.010881]
[1768285167444,2.2e-07,92014.0,92006.0,0.010881]
[1768285171046,0.19413025,92012.0,92004.0,0.010882]
[1768285172351,0.19413025,92012.0,92003.0,0.09792]
[1768285172854,0.09810322,92006.0,91998.0,1e-08]
[1768285173554,0.19413025,92006.0,91998.0,1e-08]
[1768285173749,0.09810322,92005.0,91998.0,1e-08]
[1768285173955,0.19413025,92004.0,91998.0,1e-08]
[1768285174443,0.19413025,92004.0,91995.0,0.108803]
[1768285176844,0.09115304,92003.0,91995.0,0.09792]
[1768285177150,0.09115304,92001.0,91989.0,1.03632]
[1768285177548,0.09115304,91998.0,91989.0,1.03632]
[1768285177746,0.09115304,91997.0,91989.0,1.03632]
[1768285178159,0.18141644,92002.0,91989.0,1.03632]
[1768285180052,0.18141644,92002.0,91986.0,0.00016304]
[1768285180252,0.18141644,92002.0,91986.0,1.03652304]
[1768285180463,0.09115304,92001.0,91986.0,1.03652304]
[1768285185466,0.09115304,92001.0,91987.0,0.010884]
[1768285188664,0.18141644,92006.0,91986.0,1.13544192]
[1768285188962,0.09115304,92006.0,91987.0,0.09891888]
[1768285189174,0.09115304,92005.0,91987.0,0.09891888]
[1768285189370,0.09115304,92010.0,91990.0,0.10980188]
[1768285189562,0.18141644,92010.0,91990.0,0.10980188]
[1768285190364,0.09115304,92002.0,91986.0,1.04740704]
[1768285190553,0.18141644,91999.0,91986.0,1.03652304]
[1768285190759,0.09115304,91999.0,91986.0,1.03652304]
[1768285191469,0.0902634,92002.0,91987.0,0.010884]
[1768285191669,0.09115304,92004.0,91987.0,0.010884]
[1768285192666,0.18141644,92004.0,91987.0,0.010884]
[1768285193273,0.09115304,92003.0,91987.0,0.010884]
[1768285194776,0.18141644,92003.0,91987.0,0.010884]
[1768285195074,0.09115304,92002.0,91986.0,1.03652304]
[1768285195773,0.010881,92008.0,91987.0,0.09891888]
[1768285195774,0.09115304,92007.0,91987.0,0.09891888]
[1768285195975,0.0902634,92006.0,91986.0,1.03652304]
[1768285196171,0.010882,92004.0,91986.0,1.03652304]
[1768285196479,0.09115304,92000.0,91986.0,1.03652304]
[1768285200374,0.18141644,92000.0,91986.0,1.03652304]
[1768285200565,0.18141644,91998.0,91986.0,1.03652304]
[1768285201478,0.09115304,91998.0,91986.0,1.03652304]
[1768285202990,0.0902634,92001.0,91986.0,1.03652304]
[1768285203578,0.09115304,92003.0,91986.0,1.03652304]
[1768285203786,0.1011444,92012.0,91990.0,0.10980188]
[1768285203983,0.09115304,92013.0,91996.0,0.09891888]
[1768285204178,0.18907304,92020.0,92002.0,0.09891888]
[1768285205276,0.32034099,92020.0,92002.0,0.09891888]
[1768285206371,0.18907304,92020.0,92002.0,0.09891888]
[1768285206778,0.32034099,92020.0,92002.0,0.09891888]
[1768285210090,0.18907304,92020.0,92002.0,0.09891888]
[1768285210390,0.10350707,92025.0,92010.0,0.13126795]
[1768285210787,0.00543334,92025.0,92010.0,0.22651262]
[1768285214893,0.00543334,92025.0,92011.0,0.0930585]
[1768285215794,0.00543334,92025.0,92012.0,0.1039395]
[1768285216897,0.09807373,92031.0,92012.0,0.1039395]
[1768285217296,0.13126795,92030.0,92012.0,0.1039395]
[1768285218194,0.13126795,92030.0,92012.0,0.0930585]
[1768285218391,0.10895273,92031.0,92012.0,0.0930585]
[1768285218608,0.13126795,92030.0,92012.0,0.0930585]
[1768285220399,0.13126795,92030.0,92013.0,0.0930585]
[1768285220587,0.29669952,92035.0,92020.0,0.13126795]
[1768285220897,0.20285611,92035.0,92020.0,0.13126795]
[1768285223496,0.010878,92032.0,92020.0,0.13126795]
[1768285223699,0.010878,92032.0,92012.0,0.09009595]
[1768285223700,0.010879,92029.0,92013.0,0.0930585]
[1768285225199,0.09405811,92026.0,92010.0,0.13126795]
[1768285226695,0.09405811,92026.0,92011.0,0.09792]
[1768285226998,0.09405811,92026.0,92010.0,0.13126795]
[1768285227192,0.09405811,92026.0,92011.0,0.09792]
[1768285227796,0.09405811,92026.0,92011.0,0.108801]
[1768285228795,0.18790152,92031.0,92012.0,0.0930585]
[1768285229001,0.13126795,92030.0,92012.0,0.0930585]
[1768285229904,0.13126795,92030.0,92013.0,0.010881]
[1768285230402,0.10493611,92036.0,92020.0,0.13126795]
[1768285231196,0.10493611,92036.0,92021.0,0.0930585]
[1768285231901,0.10493611,92036.0,92020.0,0.13126795]
[1768285233594,0.19877952,92036.0,92018.0,0.0930585]
[1768285233794,0.19877952,92036.0,92020.0,0.13126795]
[1768285235408,0.10493611,92036.0,92020.0,0.13126795]
[1768285238102,0.19911531,92036.0,92020.0,0.13126795]
[1768285238917,0.010878,92033.0,92020.0,0.13126795]
[1768285239215,0.09919228,92032.0,92020.0,0.13126795]
[1768285241995,0.010878,92031.0,92013.0,0.09009595]
[1768285242213,0.13126795,92030.0,92012.0,0.0986701]
[1768285246413,0.23046023,92030.0,92012.0,0.0986701]
[1768285246613,0.010879,92029.0,92012.0,0.0986701]
[1768285246816,0.11007128,92029.0,92012.0,0.0986701]
[1768285247207,0.09919228,92029.0,92012.0,0.0986701]
[1768285254523,0.14214695,92030.0,92012.0,0.09792]
[1768285254524,0.09919228,92024.0,92012.0,0.09792]
[1768285255615,0.11007128,92028.0,92012.0,0.09792]
[1768285258010,0.20425048,92028.0,92012.0,0.09792]
[1768285258323,0.09919228,92027.0,92012.0,0.09792]
[1768285266525,0.010879,92029.0,92012.0,0.19088775]
[1768285266724,0.010879,92029.0,92012.0,0.09296775]
[1768285266924,0.10390106,92029.0,92009.0,0.09792]
[1768285267124,0.09302206,92028.0,92010.0,0.13126795]
[1768285267324,0.09302206,92028.0,92009.0,0.09792]
[1768285267325,0.18363804,92028.0,92009.0,0.09792]
[1768285267532,0.09302206,92027.0,92009.0,0.09792]
[1768285271334,0.010879,92026.0,92009.0,0.09792]
[1768285271630,0.010879,92026.0,92008.0,0.09313079]
[1768285271631,0.01088,92015.0,92004.0,0.09792]
[1768285271835,0.010881,92012.0,91998.0,0.00239137]
[1768285272021,0.10470431,92013.0,91996.0,0.09792]
[1768285272618,0.10470431,92013.0,91997.0,0.010882]
[1768285272831,0.01408833,92013.0,91997.0,0.010882]
[1768285276226,0.01408833,92013.0,91996.0,0.09792]
[1768285277126,0.01408833,92013.0,91996.0,0.108802]
[1768285280527,0.01408833,92013.0,91996.0,0.20600576]
[1768285282928,0.09061598,92016.0,91996.0,0.20600576]
[1768285283639,0.01088,92015.0,91996.0,0.20600576]
[1768285283838,0.10874917,92015.0,91996.0,0.19512376]
[1768285286140,0.10874917,92015.0,91997.0,0.09720376]
[1768285287938,0.09786917,92011.0,91996.0,0.09792]
[1768285288840,0.09297308,92012.0,91996.0,0.09792]
[1768285289738,0.09786917,92014.0,91995.0,0.09792]
[1768285289930,0.010881,92012.0,91994.0,0.19512376]
[1768285290132,0.010881,92009.0,91994.0,0.09792]
[1768285290332,0.010881,92009.0,91988.0,0.010883]
[1768285290629,0.010881,92006.0,91989.0,0.09792]
[1768285291333,0.010881,92010.0,91989.0,0.09792]
[1768285291743,0.010881,92010.0,91990.0,0.09720376]
[1768285292245,0.19084225,92009.0,91990.0,0.09720376]
[1768285293446,0.19084225,92009.0,91990.0,0.10808676]
[1768285294244,0.09297308,92009.0,91990.0,0.10808676]
[1768285298447,0.010881,92008.0,91990.0,0.09720376]
[1768285298649,0.010881,92008.0,91991.0,0.09792]
[1768285298850,0.010881,92008.0,91990.0,0.09720376]
[1768285299048,0.010881,92008.0,91991.0,0.09792]
[1768285300152,0.010881,92008.0,91991.0,0.19522339]
[1768285303349,0.010882,92005.0,91991.0,0.19522339]
[1768285303549,0.10385408,92009.0,91991.0,0.19522339]
[1768285306153,0.10385408,92009.0,91992.0,0.09730339]
[1768285306353,0.010881,92009.0,91992.0,0.09730339]
[1768285307055,0.010881,92009.0,91992.0,0.19522339]
[1768285307244,0.010881,92009.0,91993.0,0.09730339]
[1768285310150,0.00016304,92012.0,91993.0,0.09730339]
[1768285311953,0.00016304,92012.0,91999.0,0.19928071]
[1768285312153,0.01631234,92025.0,92002.0,0.18839871]
[1768285312355,0.01631234,92025.0,92007.0,0.09730339]
[1768285312560,0.01088,92021.0,92006.0,0.09730339]
[1768285312948,0.01088,92021.0,92006.0,0.18839871]
[1768285313149,0.01088,92021.0,92007.0,0.09730339]
[1768285316762,0.01631234,92025.0,92007.0,0.09730339]
[1768285318467,0.01631234,92025.0,92008.0,0.09109532]
[1768285318770,0.01631234,92025.0,92009.0,0.09730339]
[1768285319063,0.01631234,92025.0,92010.0,0.09109532]
[1768285319256,0.01631234,92025.0,92011.0,0.09730339]
[1768285319459,0.01088,92022.0,92005.0,0.09730339]
[1768285320167,0.01088,92019.0,92005.0,0.09730339]
[1768285320668,0.01088,92019.0,92005.0,0.18839871]
[1768285320869,0.01088,92019.0,92006.0,0.09730339]
[1768285321370,0.010879,92024.0,92006.0,0.18839871]
[1768285321570,0.010879,92024.0,92007.0,0.09730339]
[1768285323469,0.00543334,92025.0,92007.0,0.09730339]
[1768285323870,0.01088,92018.0,92007.0,0.09730339]
[1768285324268,0.0947444,92018.0,91999.0,0.09730339]
[1768285324473,0.010881,92011.0,91997.0,0.09792]
[1768285324969,0.010881,92011.0,91995.0,0.18839871]
[1768285326073,0.10589878,92015.0,91996.0,0.09543156]
[1768285326274,0.01088,92015.0,91996.0,0.09543156]
[1768285327074,0.010881,92011.0,91996.0,0.09543156]
[1768285329577,0.13130756,92010.0,91996.0,0.09543156]
[1768285333779,0.010881,92012.0,91996.0,0.09543156]
[1768285333979,0.13130756,92010.0,91996.0,0.09543156]
[1768285336282,0.010882,92005.0,91989.0,0.09161946]
[1768285336589,0.13130756,92000.0,91989.0,0.16409195]
[1768285337086,0.13130756,92000.0,91990.0,0.09425249]
[1768285340294,0.09511373,92009.0,91990.0,0.09425249]
[1768285340992,0.13130756,92000.0,91990.0,0.09425249]
[1768285341383,0.13130756,92000.0,91989.0,0.06983946]
[1768285341384,0.13130756,92000.0,91988.0,0.09792]
[1768285342190,0.13130756,92000.0,91988.0,0.19217249]
[1768285342490,0.13130756,92000.0,91989.0,0.010883]
[1768285343396,0.13130756,92000.0,91988.0,0.19217249]
[1768285343397,0.13130756,92000.0,91988.0,0.09425249]
[1768285343580,0.13130756,92000.0,91986.0,0.09792]
[1768285344782,0.13130756,92000.0,91987.0,0.09425249]
[1768285344981,0.09511373,92005.0,91988.0,0.10513649]
[1768285346891,0.09511373,92005.0,91988.0,0.09425249]
[1768285347088,0.13130756,92000.0,91988.0,0.09425249]
[1768285347993,0.10180637,92008.0,91988.0,0.09425249]
[1768285348200,0.13130756,92000.0,91988.0,0.09425249]
[1768285351089,0.13130756,92000.0,91986.0,0.09792]
[1768285352393,0.13130756,92000.0,91986.0,0.19217249]
[1768285354690,0.010882,92003.0,91987.0,0.09575789]
[1768285354988,0.13130756,92000.0,91986.0,0.09792]
[1768285355194,0.09511373,92004.0,91990.0,0.13130756]
[1768285355400,0.09511373,92004.0,91986.0,0.19367789]
[1768285355795,0.09511373,92004.0,91987.0,0.09575789]
[1768285356096,0.13130756,92000.0,91987.0,0.09575789]
[1768285357792,0.09511373,92004.0,91987.0,0.09575789]
[1768285357997,0.13130756,92000.0,91987.0,0.09575789]
[1768285358192,0.13130756,92000.0,91986.0,0.09792]
[1768285362598,0.010882,92003.0,91986.0,0.09792]
[1768285362806,0.13130756,92000.0,91986.0,0.09792]
[1768285363001,0.09410772,92031.0,92004.0,0.09352624]
[1768285363185,0.09410772,92031.0,91985.0,0.00557491]
[1768285363186,0.09410772,92031.0,92015.0,0.13130756]
[1768285363384,0.09796,92036.0,92018.0,0.09575789]
[1768285363593,0.09796,92036.0,92020.0,0.13130756]
[1768285364090,0.09796,92036.0,92018.0,0.09575789]
[1768285364494,0.010878,92035.0,92019.0,0.09575789]
[1768285365691,0.010877,92043.0,92026.0,0.18928413]
[1768285365901,0.14218456,92040.0,92029.0,0.09575789]
[1768285366094,0.14218456,92040.0,92026.0,0.09352624]
[1768285366396,0.14218456,92040.0,92025.0,0.09575789]
[1768285370805,0.010877,92040.0,92025.0,0.09575789]
[1768285371107,0.010878,92037.0,92023.0,0.09792]
[1768285372395,0.13130756,92033.0,92023.0,0.09792]
[1768285372701,0.010879,92025.0,92014.0,0.09792]
[1768285372898,0.13130756,92024.0,92006.0,0.09575789]
[1768285373102,0.13130756,92020.0,92007.0,0.19367789]
[1768285373396,0.010879,92025.0,92007.0,0.19367789]
[1768285373807,0.19239896,92026.0,92008.0,0.09575789]
[1768285374691,0.09410772,92026.0,92010.0,0.13130756]
[1768285376002,0.09410772,92026.0,92010.0,0.22706545]
[1768285376312,0.10917024,92029.0,92010.0,0.22706545]
[1768285376497,0.10917024,92029.0,92010.0,0.09575789]
[1768285376699,0.10917024,92029.0,92010.0,0.32498545]
[1768285378395,0.010878,92033.0,92013.0,0.18928413]
[1768285378605,0.19202772,92036.0,92016.0,0.09575789]
[1768285378791,0.01104104,92037.0,92022.0,0.18928413]
[1768285379008,0.01104104,92037.0,92024.0,0.09352624]
[1768285379302,0.01104104,92037.0,92025.0,0.09575789]
[1768285379807,0.00016304,92037.0,92025.0,0.09575789]
[1768285382708,0.00543216,92045.0,92026.0,0.09352624]
[1768285383011,0.010875,92064.0,92050.0,0.09352624]
[1768285383202,0.010875,92064.0,92045.0,0.18928413]
[1768285383405,0.13130756,92060.0,92047.0,0.09575789]
[1768285383611,0.010874,92068.0,92051.0,0.09575789]
[1768285384113,0.010874,92068.0,92051.0,0.18928413]
[1768285385404,0.010874,92068.0,92052.0,0.09560693]
[1768285386818,0.010874,92068.0,92052.0,0.19170877]
[1768285387314,0.010874,92068.0,92053.0,0.09560693]
[1768285388106,0.08916544,92085.0,92058.0,0.09610184]
[1768285388305,0.13130756,92080.0,92062.0,0.09560693]
[1768285389519,0.11005842,92083.0,92062.0,0.09560693]
[1768285389815,0.13130756,92080.0,92062.0,0.09560693]
[1768285390010,0.010872,92087.0,92071.0,0.09560693]
[1768285390605,0.00238903,92088.0,92071.0,0.09560693]
[1768285391017,0.13130756,92081.0,92071.0,0.09560693]
[1768285391218,0.00238903,92088.0,92071.0,0.09560693]
[1768285391820,0.19621809,92088.0,92067.0,0.09560693]
[1768285392319,0.09464264,92087.0,92067.0,0.09560693]
[1768285392817,0.00238903,92088.0,92070.0,0.09610184]
[1768285393119,0.00238903,92088.0,92072.0,0.09610184]
[1768285393420,0.00238903,92088.0,92073.0,0.09560693]
[1768285394722,0.09788,92102.0,92085.0,0.09557888]
[1768285395017,0.19375364,92102.0,92081.0,0.09557888]
[1768285395411,6.5e-07,92095.0,92082.0,0.010872]
[1768285395812,6.5e-07,92095.0,92082.0,0.10645088]
[1768285397022,6.5e-07,92095.0,92078.0,0.19345888]
[1768285397221,0.09587364,92090.0,92079.0,0.09788]
[1768285397427,0.09587364,92089.0,92070.0,0.09557888]
[1768285397814,0.09587364,92094.0,92074.0,0.09557888]
[1768285398118,0.09587364,92094.0,92075.0,0.10645188]
[1768285398622,6.5e-07,92095.0,92078.0,0.010873]
[1768285399125,6.5e-07,92095.0,92081.0,0.010872]
[1768285399419,6.5e-07,92095.0,92081.0,0.10645088]
[1768285399627,6.5e-07,92095.0,92081.0,0.010872]
[1768285400225,6.5e-07,92095.0,92077.0,0.20270107]
[1768285400416,0.19081894,92095.0,92073.0,0.10645188]
[1768285400617,0.09587364,92091.0,92074.0,0.09788]
[1768285401526,0.09587364,92091.0,92075.0,0.010873]
[1768285402929,0.09494465,92092.0,92075.0,0.010873]
[1768285405829,0.09587429,92095.0,92078.0,0.010873]
[1768285406323,0.19081894,92095.0,92078.0,0.010873]
[1768285406530,0.09587364,92094.0,92078.0,0.010873]
[1768285407128,0.09494465,92090.0,92074.0,0.108753]
[1768285408629,0.09494465,92090.0,92077.0,0.010873]
[1768285409135,0.09587364,92094.0,92077.0,0.010873]
[1768285409834,0.09587364,92093.0,92074.0,0.09788]
[1768285410026,0.19081829,92088.0,92073.0,0.09784]
[1768285410332,0.09587364,92084.0,92071.0,0.108714]
[1768285410840,0.09494465,92085.0,92071.0,0.108714]
[1768285411836,0.09587364,92093.0,92071.0,0.20429288]
[1768285412040,0.19081829,92092.0,92071.0,0.20429288]
[1768285412338,0.09587364,92091.0,92071.0,0.20429288]
[1768285412538,0.09587364,92090.0,92071.0,0.20429288]
[1768285414630,0.09169799,92089.0,92071.0,0.20429288]
[1768285415026,0.09053169,92090.0,92074.0,0.010873]
[1768285415232,0.09169799,92093.0,92074.0,0.010873]
[1768285416738,0.09053234,92095.0,92077.0,0.10830593]
[1768285417839,0.0054298,92085.0,92077.0,0.10830593]
[1768285418931,6.5e-07,92095.0,92080.0,0.09743293]
[1768285419238,0.18222968,92083.0,92065.0,0.09784]
[1768285419438,0.13109538,92080.0,92065.0,0.09784]
[1768285419733,0.19310268,92076.0,92055.0,0.19527293]
[1768285419938,0.18222968,92072.0,92055.0,0.09784]
[1768285420541,0.18222968,92072.0,92051.0,0.10830893]
[1768285420741,0.18222968,92072.0,92052.0,0.09784]
[1768285420933,0.09169799,92071.0,92052.0,0.09784]
[1768285421140,0.09169799,92071.0,92053.0,0.010876]
[1768285421832,0.09169799,92071.0,92056.0,0.010875]
[1768285422144,0.09186093,92071.0,92056.0,0.010875]
[1768285423031,0.09169799,92070.0,92056.0,0.010875]
[1768285423231,0.09169799,92070.0,92052.0,0.09784]
[1768285423232,0.09784,92078.0,92067.0,0.09743293]
[1768285423431,0.09053169,92087.0,92069.0,0.09743293]
[1768285423432,0.09788,92087.0,92069.0,0.09743293]
[1768285424349,0.09053169,92086.0,92064.0,0.09743293]
[1768285425231,0.09053169,92084.0,92064.0,0.09743293]
[1768285425632,0.18222968,92084.0,92064.0,0.09743293]
[1768285425831,0.18222968,92084.0,92065.0,0.010874]
[1768285426342,0.18222968,92084.0,92065.0,0.10830693]
[1768285427543,0.18222968,92078.0,92065.0,0.010874]
[1768285427928,0.09053169,92078.0,92065.0,0.010874]
[1768285434046,0.09053169,92078.0,92065.0,0.00543098]
[1768285434942,0.18222968,92078.0,92065.0,0.00543098]
[1768285435138,0.18222968,92077.0,92065.0,0.00543098]
[1768285435643,0.18222968,92077.0,92056.0,0.09659614]
[1768285435644,0.13109538,92080.0,92050.0,0.09659614]
[1768285435846,0.18222968,92066.0,92051.0,0.09788]
[1768285436141,0.18222968,92066.0,92048.0,0.010876]
[1768285436343,0.18222968,92066.0,92050.0,0.010876]
[1768285436539,0.18222968,92066.0,92051.0,0.09788]
[1768285436936,0.18222968,92066.0,92050.0,0.010876]
[1768285437141,0.18222968,92066.0,92051.0,0.09788]
[1768285439655,0.18222968,92066.0,92045.0,0.10286509]
[1768285439656,0.18222968,92065.0,92046.0,0.010877]
[1768285439845,0.18222968,92065.0,92047.0,0.09788]
[1768285440653,0.18222968,92065.0,92048.0,0.010876]
[1768285441151,0.09053169,92075.0,92053.0,0.09743293]
[1768285441357,0.09053169,92075.0,92056.0,0.09743293]
[1768285441546,0.18222968,92074.0,92055.0,0.010876]
[1768285441856,0.09788,92077.0,92056.0,0.09743293]
[1768285442357,0.28010968,92077.0,92056.0,0.09743293]
[1768285442746,0.18222968,92076.0,92056.0,0.09743293]
[1768285444056,0.18222968,92075.0,92056.0,0.09743293]
[1768285445947,0.09788,92078.0,92061.0,0.09181508]
[1768285446149,0.09788,92078.0,92061.0,0.10269008]
[1768285452360,0.13111189,92080.0,92061.0,0.10269008]
[1768285454560,0.13111189,92071.0,92057.0,0.108755]
[1768285454954,0.13111189,92071.0,92057.0,0.09788]
[1768285455360,0.13111189,92067.0,92056.0,0.09788]
[1768285455661,0.13111189,92066.0,92056.0,0.09788]
[1768285455859,0.19199506,92064.0,92036.0,0.09968498]
[1768285456065,0.13111189,92066.0,92025.0,0.00543334]
[1768285456066,0.19199506,92050.0,92033.0,0.01072944]
[1768285456365,0.13111189,92043.0,92033.0,0.01072944]
[1768285456659,0.19199506,92040.0,92028.0,0.00239059]
[1768285456853,0.32310695,92040.0,92028.0,0.00239059]
[1768285457559,0.22613489,92040.0,92028.0,0.00239059]
[1768285457759,0.09697206,92045.0,92028.0,0.00239059]
[1768285459163,0.19199506,92045.0,92028.0,0.00239059]
[1768285459460,0.19199506,92044.0,92028.0,0.00239059]
[1768285459849,0.095023,92044.0,92028.0,0.00239059]
[1768285460055,0.13111189,92040.0,92028.0,0.00239059]
[1768285461964,0.095023,92044.0,92028.0,0.00239059]
[1768285462159,0.19199506,92044.0,92028.0,0.00239059]
[1768285464059,0.095023,92044.0,92028.0,0.01326959]
[1768285464259,0.108756,92054.0,92031.0,0.09968498]
[1768285464260,0.095023,92049.0,92031.0,0.09968498]
[1768285464854,0.203779,92054.0,92032.0,0.09133384]
[1768285465060,0.203779,92054.0,92033.0,0.09968498]
[1768285465262,0.30075106,92054.0,92033.0,0.09968498]
[1768285465453,0.19199506,92053.0,92033.0,0.09968498]
[1768285466068,0.13111189,92050.0,92033.0,0.09968498]
[1768285467971,0.22808395,92050.0,92032.0,0.00016294]
[1768285469171,0.13111189,92050.0,92032.0,0.09984792]
[1768285469991,0.09788,92054.0,92040.0,0.23079687]
[1768285470389,0.09788,92054.0,92040.0,0.13111189]
[1768285470990,0.19485206,92054.0,92040.0,0.13111189]
[1768285471192,0.13111189,92050.0,92036.0,0.09968498]
[1768285471391,0.13111189,92050.0,92036.0,0.010878]
[1768285472092,0.28987506,92054.0,92036.0,0.010878]
[1768285472398,0.192903,92054.0,92040.0,0.13111189]
[1768285472600,0.09788,92054.0,92040.0,0.13111189]
[1768285472988,0.095023,92059.0,92041.0,0.09968498]
[1768285473298,0.09788,92061.0,92043.0,0.09968498]
[1768285473498,0.13111189,92060.0,92040.0,0.13111189]
[1768285473700,0.32310695,92060.0,92040.0,0.13111189]
[1768285473898,0.19199506,92059.0,92040.0,0.13111189]
[1768285474394,0.19199506,92059.0,92041.0,0.010877]
[1768285479099,0.13111189,92060.0,92034.0,0.010878]
[1768285479100,0.19340508,92048.0,92034.0,0.010878]
[1768285479311,0.19340508,92044.0,92035.0,0.09788]
[1768285479694,0.19340508,92044.0,92034.0,0.010878]
[1768285479998,0.19340508,92044.0,92034.0,0.108758]
[1768285479999,0.09981823,92044.0,92034.0,0.108758]
[1768285480391,0.09358685,92048.0,92034.0,0.010878]
[1768285480605,0.09358685,92048.0,92034.0,0.108758]
[1768285480800,0.09981823,92049.0,92034.0,0.108758]
[1768285481006,0.09981823,92060.0,92040.0,0.09159968]
[1768285481302,0.23093012,92060.0,92040.0,0.09159968]
[1768285481504,0.32451697,92060.0,92043.0,0.010877]
[1768285481708,0.09788,92061.0,92050.0,0.13111189]
[1768285482005,0.00543098,92065.0,92051.0,0.010876]
[1768285482193,0.09358685,92072.0,92053.0,0.10247568]
[1768285482397,0.09358685,92078.0,92054.0,0.09159968]
[1768285482597,0.09358685,92078.0,92060.0,0.13111189]
[1768285483806,0.09358685,92077.0,92060.0,0.13111189]
[1768285484207,0.09358685,92076.0,92060.0,0.13111189]
[1768285484706,0.09358685,92076.0,92055.0,0.09788]
[1768285485403,0.13111189,92070.0,92055.0,0.09788]
[1768285486298,0.19340508,92072.0,92055.0,0.09788]
[1768285489010,0.09358685,92071.0,92055.0,0.09788]
[1768285489211,0.09358685,92067.0,92055.0,0.09788]
[1768285489394,0.09358685,92067.0,92053.0,0.01103894]
[1768285489595,0.09358685,92067.0,92004.0,0.05441]
[1768285489596,0.09358685,92061.0,92049.0,0.09788]
[1768285489806,0.13111189,92063.0,92037.0,0.09797517]
[1768285489807,0.09358685,92057.0,92037.0,0.10885317]
[1768285490005,0.13111189,92050.0,92038.0,0.09788]
[1768285490205,0.09358685,92053.0,92040.0,0.13111189]
[1768285490606,0.09981823,92056.0,92040.0,0.13111189]
[1768285490803,0.19340508,92056.0,92045.0,0.00543216]
[1768285493207,0.09981823,92056.0,92045.0,0.00543216]
[1768285493714,0.09358685,92059.0,92045.0,0.00543216]
[1768285494099,0.13111189,92060.0,92045.0,0.00543216]
[1768285494606,0.09358685,92061.0,92045.0,0.00543216]
[1768285497606,0.13111189,92060.0,92045.0,0.00543216]
[1768285498010,0.13111189,92060.0,92046.0,0.010877]
[1768285498818,0.09358685,92063.0,92046.0,0.010877]
[1768285499017,0.09358685,92069.0,92050.0,0.13111189]
[1768285499317,0.00016294,92070.0,92059.0,0.13111189]
[1768285499516,0.00016294,92070.0,92052.0,0.10247568]
[1768285499917,0.00016294,92070.0,92055.0,0.010876]
[1768285500309,0.00016294,92070.0,92060.0,0.13111189]
[1768285502106,0.09788,92078.0,92060.0,0.13111189]
[1768285502313,0.09358685,92082.0,92068.0,0.13111189]
[1768285502518,0.09358685,92082.0,92063.0,0.09159968]
[1768285502820,0.0054298,92085.0,92061.0,0.09788]
[1768285502821,0.0054298,92085.0,92067.0,0.18957485]
[1768285503125,0.0054298,92085.0,92071.0,0.09159968]
[1768285503126,0.13111189,92080.0,92071.0,0.09159968]
[1768285503310,0.0054298,92085.0,92068.0,0.010874]
[1768285503712,0.0054298,92085.0,92070.0,0.13111189]
[1768285504220,0.09901665,92085.0,92070.0,0.13111189]
[1768285506129,0.0054298,92085.0,92070.0,0.13111189]
[1768285506424,0.0054298,92085.0,92071.0,0.010874]
[1768285508118,0.0054298,92085.0,92071.0,0.19786005]
[1768285509029,0.0054298,92085.0,92071.0,0.10154679]
[1768285509524,0.0054298,92085.0,92071.0,0.010874]
[1768285512330,0.0054298,92085.0,92070.0,0.13111189]
[1768285512730,0.0054298,92085.0,92070.0,0.14198589]
[1768285512931,0.09788,92093.0,92076.0,0.18698605]
[1768285513132,0.09788,92093.0,92079.0,0.13111189]
[1768285513327,0.09788,92093.0,92076.0,0.18698605]
[1768285513632,0.09788,92093.0,92077.0,0.00016294]
[1768285513832,0.09788,92093.0,92081.0,0.010872]
[1768285514330,0.09788,92093.0,92079.0,0.010873]
[1768285517629,0.09788,92093.0,92082.0,0.010872]
[1768285519628,6.5e-07,92095.0,92083.0,0.09527859]
[1768285520133,6.5e-07,92095.0,92082.0,0.010872]
[1768285520524,6.5e-07,92095.0,92083.0,1.5]
[1768285521121,6.5e-07,92095.0,92082.0,0.010872]
[1768285521321,6.5e-07,92095.0,92084.0,0.09527859]
[1768285521531,6.5e-07,92095.0,92082.0,0.010872]
[1768285521727,6.5e-07,92095.0,92082.0,1.510872]